bitfinex-derivatives/quotes_BNBF0:USTF0_20250305
["timestamp","ask_amount","ask_price","bid_price","bid_amount"]
[1741210306787,1.22209357,595.71,595.02,0.33612315]
[1741210307381,2.18897503,595.71,595.02,0.33612315]
[1741210307582,2.18897503,595.7,595.02,0.33612315]
[1741210307786,0.96688146,595.69,595.02,0.33612315]
[1741210308181,1.22209357,595.69,595.02,0.33612315]
[1741210308987,1.22209357,595.68,595.02,0.33612315]
[1741210309486,2.51389179,595.69,595.02,0.33612315]
[1741210309697,0.96688146,595.69,595.02,0.33612315]
[1741210309888,1.22209357,595.68,595.02,0.33612315]
[1741210310490,2.51389179,595.69,595.02,0.33612315]
[1741210310690,0.96688146,595.69,595.02,0.33612315]
[1741210310892,1.22209357,595.69,595.02,0.33612315]
[1741210311285,0.96688146,595.71,595.02,0.33612315]
[1741210311889,1.22209357,595.7,595.02,0.33612315]
[1741210312394,2.18897503,595.72,595.02,0.33612315]
[1741210312692,0.96688146,595.71,595.02,0.33612315]
[1741210312892,1.22209357,595.71,595.02,0.33612315]
[1741210313892,0.96688146,595.72,595.02,0.33612315]
[1741210314093,1.22209357,595.73,595.02,0.33612315]
[1741210314490,0.96688146,595.83,595.02,0.33612315]
[1741210314895,1.22209357,595.82,595.02,0.33612315]
[1741210315197,1.22209357,595.81,595.02,0.33612315]
[1741210316494,1.22209357,595.8,595.02,0.33612315]
[1741210317098,2.18897503,595.82,595.02,0.33612315]
[1741210317600,1.22209357,595.81,595.02,0.33612315]
[1741210318092,2.18897503,595.81,595.02,0.33612315]
[1741210318295,2.18897503,595.8,595.02,0.33612315]
[1741210318497,0.96688146,595.79,595.02,0.33612315]
[1741210318691,1.22209357,595.8,595.02,0.33612315]
[1741210318893,2.18897503,595.81,595.02,0.33612315]
[1741210319295,2.18854273,595.8,595.02,0.33612315]
[1741210319497,0.96644916,595.79,595.02,0.33612315]
[1741210319690,1.22209357,595.8,595.02,0.33612315]
[1741210319893,2.18851173,595.81,595.02,0.33612315]
[1741210320297,0.96641816,595.8,595.02,0.33612315]
[1741210320495,1.22209357,595.81,595.02,0.33612315]
[1741210320697,1.22209357,595.8,595.02,0.33612315]
[1741210321193,2.18851173,595.8,595.02,0.33612315]
[1741210321395,0.96641816,595.79,595.02,0.33612315]
[1741210321599,1.22209357,595.79,595.02,0.33612315]
[1741210321994,0.96641816,595.82,595.02,0.33612315]
[1741210322499,1.22209357,595.81,595.02,0.33612315]
[1741210323201,1.22209357,595.8,595.02,0.33612315]
[1741210323601,0.96641816,595.79,595.02,0.33612315]
[1741210323801,1.22209357,595.8,595.02,0.33612315]
[1741210324898,0.9663773,595.79,595.02,0.33612315]
[1741210325312,1.22209357,595.8,595.02,0.33612315]
[1741210327009,1.22209357,595.78,595.02,0.33612315]
[1741210327818,1.22209357,595.77,595.02,0.33612315]
[1741210328317,0.96648779,595.79,595.02,0.33612315]
[1741210328318,1.22209357,595.76,595.02,0.33612315]
[1741210328819,2.18858136,595.77,595.02,0.33612315]
[1741210329021,0.96648779,595.76,595.02,0.33612315]
[1741210329217,1.22209357,595.77,595.02,0.33612315]
[1741210329613,2.54409357,595.76,595.02,0.33612315]
[1741210329809,0.96648779,595.75,595.02,0.33612315]
[1741210330203,4.13602313,595.75,595.02,0.33612315]
[1741210330408,0.96648779,595.74,595.02,0.33612315]
[1741210331004,2.18858136,595.75,595.02,0.33612315]
[1741210335304,1.22209357,595.75,595.02,0.33612315]
[1741210336111,1.322,595.76,595.02,0.33612315]
[1741210340216,2.28871254,595.76,595.02,0.33612315]
[1741210340416,2.18880611,595.75,595.02,0.33612315]
[1741210341015,1.22209357,595.74,595.02,0.33612315]
[1741210341316,0.96671254,595.75,595.02,0.33612315]
[1741210341317,1.22209357,595.73,595.02,0.33612315]
[1741210341914,1.22209357,595.72,595.02,0.33612315]
[1741210342719,1.22209357,595.71,595.02,0.33612315]
[1741210343119,1.22209357,595.73,595.02,0.33612315]
[1741210343522,1.22209357,595.72,595.02,0.33612315]
[1741210344120,1.22209357,595.71,595.02,0.33612315]
[1741210344718,1.22209357,595.73,595.02,0.33612315]
[1741210344921,2.18880611,595.73,595.02,0.33612315]
[1741210345218,0.96671254,595.72,595.02,0.33612315]
[1741210345423,1.22209357,595.71,595.02,0.33612315]
[1741210346022,0.96671254,595.71,595.02,0.33612315]
[1741210346423,1.22209357,595.71,595.02,0.33612315]
[1741210347220,1.22209357,595.73,595.02,0.33612315]
[1741210348320,1.22209357,595.72,595.02,0.33612315]
[1741210348517,1.22209357,595.74,595.02,0.33612315]
[1741210349019,1.22209357,595.73,595.02,0.33612315]
[1741210349526,1.22209357,595.72,595.02,0.33612315]
[1741210349725,0.96671254,595.72,595.02,0.33612315]
[1741210350019,3.736154,595.75,595.02,0.33612315]
[1741210350324,0.96671254,595.74,595.02,0.33612315]
[1741210350519,2.18880611,595.75,595.02,0.33612315]
[1741210350726,1.22209357,595.74,595.02,0.33612315]
[1741210350923,1.22209357,595.73,595.02,0.33612315]
[1741210351623,1.22209357,595.72,595.02,0.33612315]
[1741210352223,1.22209357,595.74,595.02,0.33612315]
[1741210353024,1.22209357,595.73,595.02,0.33612315]
[1741210354225,1.22209357,595.72,595.02,0.33612315]
[1741210354625,3.73613343,595.74,595.02,0.33612315]
[1741210354927,1.22209357,595.73,595.02,0.33612315]
[1741210355524,1.22209357,595.72,595.02,0.33612315]
[1741210356218,1.22209357,595.73,595.02,0.33612315]
[1741210356826,1.22209357,595.72,595.02,0.33612315]
[1741210357420,1.22209357,595.71,595.02,0.33612315]
[1741210357624,2.18949409,595.71,595.02,0.33612315]
[1741210357823,0.96740052,595.7,595.02,0.33612315]
[1741210358024,1.22209357,595.71,595.02,0.33612315]
[1741210358320,1.22209357,595.69,595.02,0.33612315]
[1741210359133,1.22209357,595.68,595.02,0.33612315]
[1741210359327,0.96740052,595.67,595.02,0.33612315]
[1741210359529,0.96740052,595.66,595.02,0.33612315]
[1741210359728,0.96740052,595.65,595.02,0.33612315]
[1741210359928,0.96740052,595.64,595.02,0.33612315]
[1741210360230,0.96740052,595.63,595.02,0.33612315]
[1741210360426,0.96740052,595.62,595.02,0.33612315]
[1741210360625,0.96740052,595.63,595.02,0.33612315]
[1741210360823,1.22209357,595.61,595.02,0.33612315]
[1741210361325,1.22209357,595.6,595.02,0.33612315]
[1741210361725,1.22209357,595.59,595.02,0.33612315]
[1741210362123,2.18962473,595.63,595.02,0.33612315]
[1741210362422,0.96753116,595.62,595.02,0.33612315]
[1741210362923,2.18962473,595.63,595.02,0.33612315]
[1741210363128,1.22209357,595.61,595.02,0.33612315]
[1741210363323,2.18962473,595.61,595.02,0.33612315]
[1741210363527,0.96753116,595.6,595.02,0.33612315]
[1741210363725,1.22209357,595.61,595.02,0.33612315]
[1741210363930,1.22209357,595.59,595.02,0.33612315]
[1741210364525,1.22209357,595.58,595.02,0.33612315]
[1741210364928,0.96729175,595.64,595.02,0.33612315]
[1741210365231,0.96729175,595.63,595.02,0.33612315]
[1741210365432,0.96729175,595.62,595.02,0.33612315]
[1741210365632,0.96729175,595.61,595.02,0.33612315]
[1741210365834,0.96729175,595.6,595.02,0.33612315]
[1741210366031,0.96729175,595.61,595.02,0.33612315]
[1741210366231,0.96729175,595.6,595.02,0.33612315]
[1741210366426,1.22209357,595.6,595.02,0.33612315]
[1741210366632,2.18938532,595.6,595.02,0.33612315]
[1741210366826,2.18938532,595.59,595.02,0.33612315]
[1741210367032,0.96729175,595.58,595.02,0.33612315]
[1741210367343,1.22209357,595.57,595.02,0.33612315]
[1741210367934,0.96729175,595.67,595.02,0.33612315]
[1741210368126,0.96729175,595.66,595.02,0.33612315]
[1741210368427,5.22107377,595.68,595.02,0.33612315]
[1741210368428,0.96729175,595.65,595.02,0.33612315]
[1741210368631,2.18938532,595.64,595.02,0.33612315]
[1741210368838,0.96729175,595.63,595.02,0.33612315]
[1741210369135,2.18938532,595.62,595.02,0.33612315]
[1741210369333,0.96729175,595.61,595.02,0.33612315]
[1741210369532,2.18938532,595.62,595.02,0.33612315]
[1741210369929,1.5476668,595.73,595.02,0.33612315]
[1741210369930,2.18938532,595.61,595.02,0.33612315]
[1741210370127,0.96729175,595.6,595.02,0.33612315]
[1741210370432,2.18938532,595.61,595.02,0.33612315]
[1741210370635,1.22209357,595.59,595.02,0.33612315]
[1741210371234,0.29236695,595.63,595.02,0.33612315]
[1741210371235,1.22209357,595.58,595.02,0.33612315]
[1741210371634,1.22209357,595.62,595.02,0.33612315]
[1741210372028,1.22209357,595.61,595.02,0.33612315]
[1741210372436,1.22209357,595.62,595.02,0.33612315]
[1741210373231,1.22209357,595.64,595.02,0.33612315]
[1741210373431,2.76976037,595.64,595.02,0.33612315]
[1741210373635,0.96729175,595.63,595.02,0.33612315]
[1741210373830,2.18938532,595.63,595.02,0.33612315]
[1741210374238,0.96729175,595.62,595.02,0.33612315]
[1741210374434,1.22209357,595.63,595.02,0.33612315]
[1741210374835,1.22209357,595.62,595.02,0.33612315]
[1741210375234,1.22209357,595.61,595.02,0.33612315]
[1741210376029,1.22209357,595.6,595.02,0.33612315]
[1741210376835,0.96729175,595.61,595.02,0.33612315]
[1741210377032,0.96729175,595.62,595.02,0.33612315]
[1741210377537,1.22209357,595.61,595.02,0.33612315]
[1741210377933,1.22209357,595.64,595.02,0.33612315]
[1741210378437,1.22209357,595.63,595.02,0.33612315]
[1741210378831,3.73705212,595.63,595.02,0.33612315]
[1741210379232,1.22209357,595.62,595.02,0.33612315]
[1741210379437,3.73705212,595.62,595.02,0.33612315]
[1741210379633,2.51495855,595.61,595.02,0.33612315]
[1741210379833,0.96729175,595.61,595.02,0.33612315]
[1741210380034,2.18938532,595.61,595.02,0.33612315]
[1741210380438,0.96729175,595.6,595.02,0.33612315]
[1741210380631,2.18938532,595.61,595.02,0.33612315]
[1741210380836,0.96729175,595.61,595.02,0.33612315]
[1741210381041,2.51495855,595.61,595.02,0.33612315]
[1741210381235,3.73705212,595.61,595.02,0.33612315]
[1741210381435,0.96729175,595.6,595.02,0.33612315]
[1741210381734,0.96729175,595.61,595.02,0.33612315]
[1741210381940,0.99,595.62,595.02,0.33612315]
[1741210385343,1.9557972,595.62,595.02,0.33612315]
[1741210385950,0.99,595.62,595.02,0.33612315]
[1741210386649,4.15953534,595.62,595.02,0.33612315]
[1741210386851,0.9657972,595.61,595.02,0.33612315]
[1741210387145,2.18789077,595.61,595.02,0.33612315]
[1741210390751,1.22209357,595.6,595.02,0.33612315]
[1741210393846,2.18789077,595.61,595.02,0.33612315]
[1741210394654,0.9657972,595.61,595.02,0.33612315]
[1741210394848,0.99,595.62,595.02,0.33612315]
[1741210405756,1.95733109,595.62,595.02,0.33612315]
[1741210406365,1.22209357,595.61,595.02,0.33612315]
[1741210406563,2.18942466,595.61,595.02,0.33612315]
[1741210407158,0.96733109,595.6,595.02,0.33612315]
[1741210407360,0.96733109,595.59,595.02,0.33612315]
[1741210407562,1.22209357,595.6,595.02,0.33612315]
[1741210407759,2.18939098,595.6,595.02,0.33612315]
[1741210407959,0.96729741,595.59,595.02,0.33612315]
[1741210408158,2.18939098,595.6,595.02,0.33612315]
[1741210408358,1.22209357,595.58,595.02,0.33612315]
[1741210408564,2.18939098,595.58,595.02,0.33612315]
[1741210408761,2.18939098,595.57,595.02,0.33612315]
[1741210408958,0.96729741,595.56,595.02,0.33612315]
[1741210409364,1.22209357,595.57,595.02,0.33612315]
[1741210409564,2.18939098,595.59,595.02,0.33612315]
[1741210409761,0.96729741,595.58,595.02,0.33612315]
[1741210410265,1.22209357,595.59,595.02,0.33612315]
[1741210410266,1.22209357,595.57,595.02,0.33612315]
[1741210410860,1.22209357,595.56,595.02,0.33612315]
[1741210411267,1.22209357,595.59,595.02,0.33612315]
[1741210411467,2.18939098,595.59,595.02,0.33612315]
[1741210411766,1.22209357,595.58,595.02,0.33612315]
[1741210412460,1.22209357,595.57,595.02,0.33612315]
[1741210413068,1.22209357,595.56,595.02,0.33612315]
[1741210413464,1.22209357,595.55,595.02,0.33612315]
[1741210413766,2.18939098,595.55,595.02,0.33612315]
[1741210413972,0.96729741,595.54,595.02,0.33612315]
[1741210414168,2.18939098,595.57,595.02,0.33612315]
[1741210414366,0.96729741,595.56,595.02,0.33612315]
[1741210414771,1.22209357,595.55,595.02,0.33612315]
[1741210414969,2.18939098,595.55,595.02,0.33612315]
[1741210415170,0.96729741,595.54,595.02,0.33612315]
[1741210415571,0.96729741,595.58,595.02,0.33612315]
[1741210415970,1.22209357,595.57,595.02,0.33612315]
[1741210416570,1.22209357,595.56,595.02,0.33612315]
[1741210416774,2.18939098,595.56,595.02,0.33612315]
[1741210416973,0.96729741,595.55,595.02,0.33612315]
[1741210417375,2.18939098,595.55,595.02,0.33612315]
[1741210417575,0.96729741,595.54,595.02,0.33612315]
[1741210417969,0.96729741,595.58,595.02,0.33612315]
[1741210418277,2.18939098,595.58,595.02,0.33612315]
[1741210418476,2.18939098,595.57,595.02,0.33612315]
[1741210418675,2.18939098,595.56,595.02,0.33612315]
[1741210418876,2.18939098,595.55,595.02,0.33612315]
[1741210419072,2.18939098,595.54,595.02,0.33612315]
[1741210419278,0.96729741,595.53,595.02,0.33612315]
[1741210419477,1.22209357,595.52,595.02,0.33612315]
[1741210419979,2.18939098,595.58,595.02,0.33612315]
[1741210420180,0.96729741,595.57,595.02,0.33612315]
[1741210420373,1.22209357,595.58,595.02,0.33612315]
[1741210420374,1.22209357,595.56,595.02,0.33612315]
[1741210420978,2.18939098,595.56,595.02,0.33612315]
[1741210421175,2.18939098,595.55,595.02,0.33612315]
[1741210421377,0.96729741,595.54,595.02,0.33612315]
[1741210421777,0.96729741,595.58,595.02,0.33612315]
[1741210422073,1.22209357,595.58,595.02,0.33612315]
[1741210422274,2.18939098,595.58,595.02,0.33612315]
[1741210422480,0.96729741,595.57,595.02,0.33612315]
[1741210422680,1.22209357,595.57,595.02,0.33612315]
[1741210423476,1.22209357,595.56,595.02,0.33612315]
[1741210423774,1.22209357,595.55,595.02,0.33612315]
[1741210424575,1.22209357,595.54,595.02,0.33612315]
[1741210425182,2.18939098,595.58,595.02,0.33612315]
[1741210425375,0.96729741,595.57,595.02,0.33612315]
[1741210425981,1.22209357,595.56,595.02,0.33612315]
[1741210426477,1.22209357,595.55,595.02,0.33612315]
[1741210426977,1.22209357,595.54,595.02,0.33612315]
[1741210427176,2.18939098,595.54,595.02,0.33612315]
[1741210427378,0.96729741,595.53,595.02,0.33612315]
[1741210427585,1.22209357,595.54,595.02,0.33612315]
[1741210427779,1.22209357,595.53,595.02,0.33612315]
[1741210428884,1.22209357,595.52,595.02,0.33612315]
[1741210429282,0.96729741,595.51,595.02,0.33612315]
[1741210429481,2.18939098,595.5,595.02,0.33612315]
[1741210429682,0.96729741,595.49,595.02,0.33612315]
[1741210429878,0.96729741,595.48,595.02,0.33612315]
[1741210430078,0.96729741,595.47,595.02,0.33612315]
[1741210430282,0.96729741,595.46,595.02,0.33612315]
[1741210430482,0.96729741,595.48,595.02,0.33612315]
[1741210430784,0.96729741,595.47,595.02,0.33612315]
[1741210430985,0.96729741,595.46,595.02,0.33612315]
[1741210431182,1.22209357,595.47,595.02,0.33612315]
[1741210431484,1.22209357,595.45,595.02,0.33612315]
[1741210431685,1.22209357,595.44,595.02,0.33612315]
[1741210432087,1.22209357,595.44,594.8,0.29241977]
[1741210432280,1.22209357,595.43,594.53,1.25844178]
[1741210432484,1.22209357,595.43,594.54,0.33639452]
[1741210432886,0.96729741,595.47,594.54,0.33639452]
[1741210433080,1.22358674,595.42,594.54,0.33639452]
[1741210433386,0.96729741,595.41,594.55,0.29245295]
[1741210433586,2.19088415,595.41,594.56,0.3363832]
[1741210433784,0.96729741,595.4,594.56,0.3363832]
[1741210434182,1.22358674,595.39,594.57,1.25844178]
[1741210434384,2.19088415,595.39,594.58,0.33637189]
[1741210434584,0.96729741,595.38,594.58,0.33637189]
[1741210434784,1.22358674,595.39,594.58,0.33637189]
[1741210435587,0.9,595.38,594.58,0.33637189]
[1741210436490,1.86729741,595.38,594.58,0.33637189]
[1741210436690,0.9,595.38,594.58,0.33637189]
[1741210451905,0.9,595.38,594.58,1.59481367]
[1741210453906,0.9,595.38,594.58,0.33637189]
[1741210456413,0.9,595.38,594.64,1.25844178]
[1741210456613,0.9,595.38,594.65,0.33633229]
[1741210461017,0.9,595.38,594.69,1.25844178]
[1741210461217,0.9,595.38,594.7,0.33630401]
[1741210463617,0.9,595.38,594.71,1.25844178]
[1741210463815,0.9,595.38,594.72,0.3362927]
[1741210473816,2.51411771,595.72,594.72,0.3362927]
[1741210474020,2.18899719,595.71,594.72,0.3362927]
[1741210474318,2.18899719,595.7,594.72,0.3362927]
[1741210474517,0.96690356,595.69,594.72,0.3362927]
[1741210474822,1.22196755,595.69,594.72,0.3362927]
[1741210475021,1.22196755,595.68,594.72,0.3362927]
[1741210475517,1.22196755,595.67,594.72,0.3362927]
[1741210475723,2.18887111,595.76,594.72,0.3362927]
[1741210475923,0.96690356,595.75,594.72,0.3362927]
[1741210476223,2.18887111,595.74,594.72,0.3362927]
[1741210476424,2.18887111,595.73,594.72,0.3362927]
[1741210476623,0.96690356,595.72,594.72,0.3362927]
[1741210476922,2.14990356,595.71,594.72,0.3362927]
[1741210477124,0.96690356,595.7,594.72,0.3362927]
[1741210477423,1.22196755,595.69,594.72,0.3362927]
[1741210477824,1.22196755,595.69,594.79,1.25844178]
[1741210478024,1.22196755,595.69,594.8,0.33624747]
[1741210478421,1.22196755,595.68,594.8,0.33624747]
[1741210478818,3.73591681,595.69,594.8,0.33624747]
[1741210479024,0.96690356,595.68,594.8,0.33624747]
[1741210479219,0.96690356,595.69,594.8,0.33624747]
[1741210479423,2.18887111,595.7,594.8,0.33624747]
[1741210480427,0.96690356,595.7,594.8,0.33624747]
[1741210481321,1.183,595.71,594.8,0.33624747]
[1741210482124,2.14990356,595.71,594.8,0.33624747]
[1741210482329,0.96690356,595.7,594.8,0.33624747]
[1741210482627,1.183,595.71,594.8,0.33624747]
[1741210483423,2.14990356,595.71,594.8,0.33624747]
[1741210483626,0.96690356,595.7,594.8,0.33624747]
[1741210483927,1.183,595.71,594.8,0.33624747]
[1741210494340,1.183,595.71,594.83,1.25844178]
[1741210494541,1.183,595.71,594.85,0.33621921]
[1741210507449,1.183,595.71,594.88,1.25844178]
[1741210507649,1.183,595.71,594.89,0.3361966]
[1741210509447,1.183,595.71,594.97,1.25844178]
[1741210509645,1.183,595.71,594.98,0.33614575]
[1741210518958,0.96725576,595.82,594.98,0.33614575]
[1741210519159,2.51479351,595.82,594.98,0.33614575]
[1741210519366,1.22196755,595.81,594.98,0.33614575]
[1741210519558,1.22196755,595.8,594.98,0.33614575]
[1741210519756,2.18922331,595.8,594.98,0.33614575]
[1741210519956,0.96725576,595.79,594.98,0.33614575]
[1741210520363,1.22196755,595.79,594.98,0.33614575]
[1741210521170,1.22196755,595.78,594.98,0.33614575]
[1741210521565,2.18922331,595.81,594.98,0.33614575]
[1741210521761,0.96725576,595.8,594.98,0.33614575]
[1741210521966,1.22196755,595.81,594.98,0.33614575]
[1741210522165,2.50696755,595.79,594.98,0.33614575]
[1741210522461,0.96725576,595.78,594.98,0.33614575]
[1741210522766,2.18922331,595.78,594.98,0.33614575]
[1741210523170,1.22196755,595.77,594.98,0.33614575]
[1741210523773,1.22196755,595.76,594.98,0.33614575]
[1741210524362,2.51479351,595.78,594.98,0.33614575]
[1741210524363,1.22196755,595.75,594.98,0.33614575]
[1741210524966,1.22196755,595.76,594.98,0.33614575]
[1741210525461,1.22196755,595.75,594.98,0.33614575]
[1741210525866,1.22196755,595.76,594.98,0.33614575]
[1741210526867,1.22196755,595.75,594.98,0.33614575]
[1741210527467,1.22196755,595.76,594.98,0.33614575]
[1741210529864,1.22196755,595.75,594.98,0.33614575]
[1741210530169,1.22196755,595.76,594.98,0.33614575]
[1741210530370,2.18922331,595.76,594.98,0.33614575]
[1741210530572,0.96725576,595.75,594.98,0.33614575]
[1741210530770,0.96725576,595.74,594.98,0.33614575]
[1741210530971,1.22196755,595.76,594.98,0.33614575]
[1741210530972,2.18922331,595.73,594.98,0.33614575]
[1741210531272,0.96725576,595.72,594.98,0.33614575]
[1741210531471,0.96725576,595.71,594.98,0.33614575]
[1741210531663,0.96725576,595.7,594.98,0.33614575]
[1741210531868,0.96725576,595.69,594.98,0.33614575]
[1741210532064,0.96725576,595.68,594.98,0.33614575]
[1741210532267,0.96725576,595.67,594.98,0.33614575]
[1741210532468,0.96725576,595.66,594.98,0.33614575]
[1741210532664,0.96725576,595.65,594.98,0.33614575]
[1741210532867,0.9680451,595.66,594.98,0.33614575]
[1741210533070,1.22196755,595.64,594.98,0.33614575]
[1741210533272,0.9680451,595.63,594.98,0.33614575]
[1741210533673,0.96796468,595.62,594.98,0.33614575]
[1741210533974,0.96796468,595.61,594.98,0.33614575]
[1741210534271,0.96796468,595.6,594.98,0.33614575]
[1741210534469,0.96796468,595.59,594.98,0.33614575]
[1741210534675,0.96796468,595.58,594.98,0.33614575]
[1741210534870,2.18993223,595.57,594.98,0.33614575]
[1741210535071,0.96796468,595.56,594.98,0.33614575]
[1741210535367,0.96796468,595.55,594.98,0.33614575]
[1741210535570,1.22196755,595.55,594.98,0.33614575]
[1741210535767,2.18993223,595.55,594.98,0.33614575]
[1741210535967,2.18993223,595.54,594.98,0.33614575]
[1741210536171,0.96796468,595.53,594.98,0.33614575]
[1741210536369,1.22196755,595.54,594.98,0.33614575]
[1741210536572,2.18993223,595.59,594.98,0.33614575]
[1741210536770,0.96796468,595.58,594.98,0.33614575]
[1741210536971,1.22196755,595.57,594.98,0.33614575]
[1741210537368,2.18993223,595.57,594.98,0.33614575]
[1741210537671,2.18993223,595.56,594.98,0.33614575]
[1741210537873,0.96796468,595.55,594.98,0.33614575]
[1741210538171,1.22196755,595.56,594.98,0.33614575]
[1741210538375,1.22196755,595.57,594.98,0.33614575]
[1741210538972,2.18993223,595.59,594.98,0.33614575]
[1741210539172,0.96796468,595.58,594.98,0.33614575]
[1741210539471,2.18993223,595.58,594.98,0.33614575]
[1741210539673,0.96796468,595.57,594.98,0.33614575]
[1741210539872,1.22196755,595.58,594.98,0.33614575]
[1741210540072,0.96796468,595.63,594.98,0.33614575]
[1741210540073,0.96796468,595.62,594.98,0.33614575]
[1741210540271,0.96796468,595.61,594.98,0.33614575]
[1741210540471,1.22196755,595.61,594.98,0.33614575]
[1741210540772,1.22196755,595.6,594.98,0.33614575]
[1741210541373,1.22196755,595.59,594.98,0.33614575]
[1741210541768,1.22196755,595.6,594.98,0.33614575]
[1741210544474,0.292421,595.64,594.98,0.33614575]
[1741210547875,1.51438855,595.64,594.98,0.33614575]
[1741210548077,1.22196755,595.64,594.98,0.33614575]
[1741210548577,0.29233994,595.75,594.98,0.33614575]
[1741210548779,2.80904811,595.75,594.98,0.33614575]
[1741210549178,0.96796468,595.75,594.98,0.33614575]
[1741210549379,1.22196755,595.74,594.98,0.33614575]
[1741210549678,2.18993223,595.76,594.98,0.33614575]
[1741210549879,0.96796468,595.75,594.98,0.33614575]
[1741210550082,1.22196755,595.76,594.98,0.33614575]
[1741210552280,3.73867572,595.76,594.98,0.33614575]
[1741210552882,1.22196755,595.75,594.98,0.33614575]
[1741210560287,2.18819585,595.75,594.98,0.33614575]
[1741210560583,0.9662283,595.74,594.98,0.33614575]
[1741210560789,0.9662283,595.75,594.98,0.33614575]
[1741210561587,1.22196755,595.76,594.98,0.33614575]
[1741210568392,2.18819585,595.76,594.98,0.33614575]
[1741210568587,0.9662283,595.75,594.98,0.33614575]
[1741210568787,2.18819585,595.76,594.98,0.33614575]
[1741210568993,0.9662283,595.75,594.98,0.33614575]
[1741210569190,3.17711563,595.76,594.98,0.33614575]
[1741210569390,2.51256225,595.75,594.98,0.33614575]
[1741210569688,1.22196755,595.74,594.98,0.33614575]
[1741210570294,4.2383317,595.76,594.98,0.33614575]
[1741210570494,3.01636415,595.75,594.98,0.33614575]
[1741210570794,0.9662283,595.74,594.98,0.33614575]
[1741210570989,0.9662283,595.73,594.98,0.33614575]
[1741210571189,0.9662283,595.72,594.98,0.33614575]
[1741210571396,1.22196755,595.72,594.98,0.33614575]
[1741210571887,2.18819585,595.71,594.98,0.33614575]
[1741210572090,0.9662283,595.7,594.98,0.33614575]
[1741210572288,1.22196755,595.7,594.98,0.33614575]
[1741210572890,1.22196755,595.69,594.98,0.33614575]
[1741210573197,0.9662283,595.68,594.98,0.33614575]
[1741210573391,0.9662283,595.67,594.98,0.33614575]
[1741210573594,0.96749367,595.67,594.98,0.33614575]
[1741210573788,0.96749367,595.66,594.98,0.33614575]
[1741210574088,1.22196755,595.68,594.98,0.33614575]
[1741210574089,0.96749367,595.65,594.98,0.33614575]
[1741210574294,0.96749367,595.64,594.98,0.33614575]
[1741210574594,0.96749367,595.63,594.98,0.33614575]
[1741210574795,0.96749367,595.62,594.98,0.33614575]
[1741210575097,2.18946122,595.61,594.98,0.33614575]
[1741210575296,0.96749367,595.6,594.98,0.33614575]
[1741210575593,2.18946122,595.59,594.64,1.25844178]
[1741210575789,0.96749367,595.58,594.73,0.29239029]
[1741210575986,0.96749367,595.57,594.65,0.33633229]
[1741210576186,2.18946122,595.56,594.65,0.33633229]
[1741210576390,0.96749367,595.55,594.73,0.29241732]
[1741210576590,1.22196755,595.56,594.65,0.33633229]
[1741210576893,0.96749367,595.6,594.65,0.33633229]
[1741210576894,1.22196755,595.55,594.65,0.33633229]
[1741210577494,1.51438978,595.54,594.66,0.29242223]
[1741210577691,1.22196755,595.54,594.66,0.29242223]
[1741210577895,2.18946122,595.54,594.66,0.29242223]
[1741210578197,0.96749367,595.53,594.67,0.33632098]
[1741210578396,2.51548355,595.56,594.67,0.33632098]
[1741210579189,1.22196755,595.55,594.67,0.33632098]
[1741210579391,2.56596755,595.55,594.67,0.33632098]
[1741210579591,0.96749367,595.54,594.67,0.33632098]
[1741210580496,2.18946122,595.54,594.67,0.33632098]
[1741210584596,0.96656278,595.53,594.67,0.33632098]
[1741210585197,2.18853033,595.53,594.67,0.33632098]
[1741210585395,3.73503079,595.53,594.67,0.33632098]
[1741210585800,1.22196755,595.52,594.67,0.33632098]
[1741210586900,1.22196755,595.51,594.67,0.33632098]
[1741210587099,0.96658063,595.5,594.67,0.33632098]
[1741210587299,0.96658063,595.49,594.67,0.33632098]
[1741210587500,0.96658063,595.48,594.67,0.33632098]
[1741210587806,0.95417811,595.47,594.67,0.33632098]
[1741210588007,1.22196755,595.48,594.67,0.33632098]
[1741210588200,1.22196755,595.47,594.67,0.33632098]
[1741210588909,1.51448564,595.46,594.67,0.33632098]
[1741210589806,1.22196755,595.45,594.67,0.33632098]
[1741210590201,2.76631486,595.45,594.67,0.33632098]
[1741210590405,3.17711563,595.44,594.67,0.33632098]
[1741210590604,1.54434731,595.43,594.67,0.33632098]
[1741210590802,3.17711563,595.44,594.67,0.33632098]
[1741210591003,1.22196755,595.42,594.67,0.33632098]
[1741210591606,1.22196755,595.41,594.67,0.33632098]
[1741210592208,1.22196755,595.4,594.67,0.33632098]
[1741210592604,1.51461233,595.4,594.67,0.33632098]
[1741210593009,1.22196755,595.39,594.67,0.33632098]
[1741210593809,1.22196755,595.38,594.67,0.33632098]
[1741210594412,0.29264478,595.4,594.67,0.33632098]
[1741210596011,1.22196755,595.39,594.67,0.33632098]
[1741210596914,0.29264478,595.4,594.67,0.33632098]
[1741210597310,1.22196755,595.47,594.67,0.33632098]
[1741210597511,1.22196755,595.46,594.67,0.33632098]
[1741210598408,1.22196755,595.52,594.67,0.33632098]
[1741210598609,0.2926091,595.45,594.67,0.33632098]
[1741210598814,1.22196755,595.52,594.67,0.33632098]
[1741210599013,1.22196755,595.51,594.67,0.33632098]